Cogmind - Beta 17 @@@ ROGUE MODE // 2026.08.22 @ 14:50:36 Player: 4R-ZE3 Result: Self-destructed Performance ------------- Evolutions (3) 1500 Regions Visited (6) 1200 Robots Destroyed (68) 340 Value Destroyed (1742) 1742 Prototype IDs (2) 40 Alien Tech Used (0) 0 Bonus (127) 127 TOTAL SCORE: 4949 Bonus ------- High Alert Combat Kills 66 Follower Combat Kills 61 Cogmind --------- Core Integrity 700/700 Matter 250/300 Energy 290/290 System Corruption 0% Temperature Cool (0) Movement Treading (241) Ox1 Location -7/Factory Parts ------- > --- POWER (1) -------- Reinforced Deuterium Engine > --- PROPULSION (4) --- Improved Treads Armored Treads Armored Treads Advanced Treads > --- UTILITY (5) ------ Improved Heat Sink Improved Heat Sink High-capacity Storage Unit Hardened Medium Armor Plating Hardlight Generator > --- WEAPON (3) ------- Heavy Particle Cannon Heavy Particle Cannon Heavy Particle Cannon > --- INVENTORY (20) --- Light Treads Light Treads Light Treads Light Treads Armored Treads Improved Heat Sink Coolant Injector Medium Armor Plating Medium Armor Plating Medium Armor Plating Medium Armor Plating Advanced Beam Cannon Advanced Beam Cannon Enhanced Autogun Enhanced Autogun Enhanced Autogun Gauss Rifle Missile Launcher Missile Launcher Peak State ------------ > --- POWER ------------ Reinforced Deuterium Engine > --- PROPULSION ------- Improved Treads Armored Treads Armored Treads Advanced Treads > --- UTILITY ---------- Improved Heat Sink Improved Heat Sink High-capacity Storage Unit Hardened Medium Armor Plating Hardlight Generator > --- WEAPON ----------- Enhanced Autogun Enhanced Autogun Gauss Rifle > --- INVENTORY -------- Light Treads Light Treads Light Treads Light Treads Armored Treads Improved Heat Sink Medium Armor Plating Medium Armor Plating Medium Armor Plating Medium Armor Plating Advanced Beam Cannon Advanced Beam Cannon Heavy Particle Cannon Heavy Particle Cannon Heavy Particle Cannon Enhanced Autogun Missile Launcher Missile Launcher [Rating: 44] Favorites ----------- Power Ion Engine Engine Ion Engine Power Core Light Nuclear Core Propulsion Improved Treads Treads Improved Treads Utility High-capacity Storage Unit Device Heat Sink Storage High-capacity Storage Unit Protection Hardened Medium Armor Plating Weapon Medium Laser Energy Gun Medium Laser Energy Cannon Advanced Beam Cannon Ballistic Gun Enhanced Autogun Ballistic Cannon Light Cannon Build | -11 -10 -10 -10 -9 -8 -7 ------- Run | Yrd Mat Min Exi Min Mat Fac Slots Evolved 6 | . . . . . 4 2 Power . | . . . . . . . Propulsion 2 | . . . . . 2 . Utility 3 | . . . . . 1 2 Weapon 1 | . . . . . 1 . Parts Attached 49 | 6 8 . . 2 30 3 Power 5 | 1 1 . . . 3 . Engine 4 | 1 1 . . . 2 . Core 1 | . . . . . 1 . Reactor . | . . . . . . . Propulsion 14 | 2 2 . . 1 9 . Treads 14 | 2 2 . . 1 9 . Leg . | . . . . . . . Wheel . | . . . . . . . Hover . | . . . . . . . Flight . | . . . . . . . Utility 11 | 1 3 . . 1 6 . Device 7 | . 1 . . 1 5 . Storage 3 | 1 2 . . . . . Processor . | . . . . . . . Hackware . | . . . . . . . Protection 1 | . . . . . 1 . Artifact . | . . . . . . . Weapon 19 | 2 2 . . . 12 3 Energy Gun 3 | 1 2 . . . . . Energy Cannon 6 | . . . . . 3 3 Ballistic Gun 7 | 1 . . . . 6 . Ballistic Cannon 3 | . . . . . 3 . Launcher . | . . . . . . . Special Weapon . | . . . . . . . Impact Weapon . | . . . . . . . Slashing Weapon . | . . . . . . . Piercing Weapon . | . . . . . . . Special Melee Weapon . | . . . . . . . Unidentified Prototypes 2 | . . . . . 2 . Parts Lost 8 | . 3 . . 1 4 . Power 2 | . 1 . . . 1 . Propulsion 3 | . . . . 1 2 . Utility . | . . . . . . . Weapon 3 | . 2 . . . 1 . Highest Loss Streak 2 | . 2 . . 1 2 . To Critical Strikes . | . . . . . . . Average Backups 16 | . 9 18 18 18 18 18 Power . | . . 1 1 1 . . Propulsion 4 | . 3 6 6 5 4 5 Utility 7 | . 4 8 8 8 8 5 Weapon 3 | . . 3 3 3 5 8 Tool/Special . | . . . . . . . Unused Backups 14 | . . . . . 8 6 Power . | . . . . . . . Propulsion 3 | . . . . . 1 2 Utility 6 | . . . . . 2 4 Weapon 5 | . . . . . 5 . Tool/Special . | . . . . . . . Average Slot Usage (%) 98 | . 97 100 100 100 98 99 Engine 10 | . 14 14 14 14 3 7 Core 1 | . . . . . 5 . Treads 30 | . 28 28 28 28 35 30 Device 13 | . 11 14 14 14 13 23 Storage 12 | . 14 14 14 14 9 7 Protection 1 | . . . . . 3 6 Energy Gun 16 | . 19 28 28 28 2 . Energy Cannon 2 | . . . . . 4 20 Ballistic Gun 7 | . 8 . . . 17 2 Peak Build Rating 44 | 6 11 11 11 13 38 44 Average Rating 17 | 4 9 11 11 11 28 41 On Entrance 12 | . 6 11 11 11 12 38 Avg Prop Armor Cover (%) . | . . . . . . . Naked Turns . | . . . . . . . Heaviest Build 88 | 12 50 50 50 50 73 88 Greatest Support 85 | 40 46 46 46 46 85 85 Greatest Overweight (x) 3 | 3 1 1 1 1 . 1 Average Overweight (x) . | . . 1 1 1 . 1 Largest Inventory Capacity 20 | 8 20 20 20 20 20 20 Average Capacity 19 | 7 18 20 20 20 20 20 Most Carried 20 | 1 18 18 18 20 20 19 Average Carried 16 | . 9 18 18 18 18 18 Final Capacity 20 | 8 20 20 20 20 20 20 Final Carried 20 | 1 18 18 18 19 20 19 Class Distribution -------------------- 67% | Mutant 20% | Scavenger-Tank 11% | Tank Dominant Class ---------------- Mutant | -10/Materials Mutant | -10/Mines Mutant | -10/Exiles Mutant | -9/Mines Scavenger-Tank | -8/Materials Scavenger-Tank | -7/Factory Resources | -11 -10 -10 -10 -9 -8 -7 ----------- Run | Yrd Mat Min Exi Min Mat Fac Matter Collected 1738 | 170 200 . . 20 1348 . Remotely . | . . . . . . . Salvage Created 2574 | . 668 117 . 57 1732 . Parts 136 | . 37 . . 5 94 . Haulers Intercepted 4 | . 2 . . . 2 . Recyclers Shooed . | . . . . . . . Parts Field Recycled . | . . . . . . . Retrieved Matter . | . . . . . . . Parts Self-Destructed . | . . . . . . . Prevented . | . . . . . . . Parts Restored . | . . . . . . . Kills | -11 -10 -10 -10 -9 -8 -7 ------- Run | Yrd Mat Min Exi Min Mat Fac Combat Hostiles Destroyed 54 | . 14 2 . 4 34 . Guns 45 | . 14 1 . 4 26 . Cannons 8 | . . . . . 8 . Classes Destroyed 10 | . 5 . . . 5 . Worker 3 | . 1 . . . 2 . Tunneler 1 | . . . . . 1 . Hauler 4 | . 2 . . . 2 . Recycler 6 | . 1 . . . 5 . Swarmer 22 | . 5 . . 4 13 . Grunt 21 | . 9 2 . . 10 . Sentry 5 | . . . . . 5 . Specialist 2 | . . . . . 2 . Hunter 3 | . . . . . 3 . Heavy 1 | . . . . . 1 . Best Kill Streak 10 | . 9 2 . 3 10 . Combat Bots Only 8 | . 8 2 . 3 6 . Max Kills in Single Turn 2 | . 1 1 . 1 2 . Gunslinging 1 | . . . . . 1 . Exploded . | . . . . . . . Melee . | . . . . . . . Uniques/NPCs Destroyed . | . . . . . . . Combat | -11 -10 -10 -10 -9 -8 -7 -------- Run | Yrd Mat Min Exi Min Mat Fac Hostile Shots Fired 302 | . 100 12 . 21 169 . Missed 85 | . 26 2 . 10 47 . Hits 217 | . 74 10 . 11 122 . Projectile 217 | . 74 10 . 11 122 . Critical Strikes 3 | . . . . . 3 . Damage Taken 2469 | . 801 117 . 93 1458 . Core 343 | . 136 50 . 17 140 . Absorbed by Shields 200 | . . . . . 200 . Core Remaining (%) 64 | 100 . . . 18 74 . Volleys Fired 188 | . 60 15 . 6 107 . Largest 3 | . 2 2 . 2 3 . Hottest 204 | . 100 100 . 100 204 . Shots Fired 473 | . 116 30 . 12 315 . Gun 413 | . 116 30 . 12 255 . Cannon 60 | . . . . . 60 . Launcher . | . . . . . . . Special . | . . . . . . . Kinetic 304 | . 45 . . . 259 . Thermal 169 | . 71 30 . 12 56 . Explosive . | . . . . . . . Electromagnetic . | . . . . . . . Robot Hit Streak 20 | . 20 10 . 4 20 . Robot Miss Streak 4 | . 4 1 . 3 3 . Penetration Max 1 | . . . . . 1 . Secondary Targets 9 | . 4 1 . . 4 . Max Gunslinging Chain 1 | . 1 1 . . 1 . Shots Hit Robots 315 | . 78 23 . 6 208 . Core Hits 120 | . 33 6 . 4 77 . Critical Kills . | . . . . . . . Critical Parts Destroyed . | . . . . . . . Critical Strikes 12 | . 1 3 . 2 6 . Burn 9 | . 1 3 . 2 3 . Blast 3 | . . . . . 3 . Melee Attacks . | . . . . . . . Impact . | . . . . . . . Slashing . | . . . . . . . Piercing . | . . . . . . . Sneak Attacks . | . . . . . . . Combat Hostiles . | . . . . . . . Follow-up Attacks . | . . . . . . . Damage Inflicted 4809 | . 853 307 . 83 3566 . Guns 4104 | . 853 307 . 83 2861 . Cannons 705 | . . . . . 705 . Explosions . | . . . . . . . Melee . | . . . . . . . Ramming . | . . . . . . . Kinetic 3194 | . 216 . . . 2978 . Thermal 1615 | . 637 307 . 83 588 . Explosive . | . . . . . . . Electromagnetic . | . . . . . . . Impact . | . . . . . . . Slashing . | . . . . . . . Piercing . | . . . . . . . Highest Corruption . | . . . . . . . Average Corruption . | . . . . . . . Corruption Purged . | . . . . . . . Corruption Blocked . | . . . . . . . Overload Shots . | . . . . . . . Overflow Damage 12 | . . . . . 12 . Projectiles 12 | . . . . . 12 . Explosions . | . . . . . . . Melee . | . . . . . . . Knockbacks 2 | . . . . . 2 . Impact . | . . . . . . . Kinetic 2 | . . . . . 2 . Secondary . | . . . . . . . Self-Inflicted Damage . | . . . . . . . Shots . | . . . . . . . Rammed . | . . . . . . . Targets Rammed . | . . . . . . . Kicked . | . . . . . . . Crushed . | . . . . . . . Highest Temperature 401 | . 210 129 . 9 401 . Average Temperature 60 | . 86 47 . 6 53 . Received Heat Transfer 776 | . 303 66 . . 407 . Effects 2 | . . . . . 2 . Interference 1 | . . . . . 1 . Short Circuit 1 | . . . . . 1 . Siege Activations . | . . . . . . . Martial Activations . | . . . . . . . Shielding Activations . | . . . . . . . Robots Disrupted . | . . . . . . . Combat Hostiles . | . . . . . . . Robots Corrupted . | . . . . . . . Combat Hostiles . | . . . . . . . Parts Fried . | . . . . . . . Impact Corruptions . | . . . . . . . Robots Melted 1 | . . 1 . . . . Combat Hostiles 1 | . . 1 . . . . Parts Melted 15 | . 7 2 . 2 4 . Heat Transferred 4698 | . 1701 1110 . 370 1517 . Parts Sabotaged . | . . . . . . . Parts Stolen . | . . . . . . . Parts Stripped . | . . . . . . . Power Chain Reactions . | . . . . . . . Alert | -11 -10 -10 -10 -9 -8 -7 ------- Run | Yrd Mat Min Exi Min Mat Fac Maximum Alert Level 2 | . . . . . 2 1 Low Security (%) 85 | 100 100 100 . 100 66 . Level 1 9 | . . . . . 18 100 Level 2 5 | . . . . . 14 . Level 3 . | . . . . . . . Level 4 . | . . . . . . . Level 5 . | . . . . . . . High Security . | . . . . . . . Max Security . | . . . . . . . Peak Influence 562 | . 163 50 . 92 562 253 Initial 253 | . . 24 . . . 253 Average 97 | . 55 3 . 32 205 234 Influence Increases 1712 | . 398 50 . 192 1072 . Destroy 0b10 Robot/C 1180 | . 280 40 . 140 720 . Destroy 0b10 Robot/NC 70 | . 20 . . . 50 . Destroy Leader 268 | . 64 10 . 20 174 . Allied During Kill 23 | . . . . 17 6 . Successful Hack 16 | . 4 . . . 12 . Select Force Hacks 90 | . 30 . . . 60 . Disable Machine 30 | . . . . . 30 . Destroy Structure 5 | . . . . . 5 . Lose Combat Pursuer 30 | . . . . 15 15 . Influence Decreases 1499 | . 336 112 . 192 514 345 Entered New Map 343 | . . 38 . . . 305 Time Decay 1016 | . 306 74 . 142 454 40 Lost Part 80 | . 30 . . 10 40 . Lost Ally 60 | . . . . 40 20 . Squads Dispatched 11 | . 2 . . . 9 . Investigation 4 | . 1 . . . 3 . Extermination . | . . . . . . . Reinforcement 4 | . 1 . . . 3 . Assault . | . . . . . . . Garrison 3 | . . . . . 3 . Intercept . | . . . . . . . Searches Triggered . | . . . . . . . Construction Impeded . | . . . . . . . Haulers Reinforced . | . . . . . . . Active Scanning Responses . | . . . . . . . Cargo Convoy Interrupts . | . . . . . . . Stealth | -11 -10 -10 -10 -9 -8 -7 --------- Run | Yrd Mat Min Exi Min Mat Fac Distress Signals 9 | . 2 . . . 7 . Communications Jammed . | . . . . . . . Distress Signals . | . . . . . . . Times Spotted 82 | . 24 2 . 8 48 . Peak Tracking Total 10 | . 6 2 . 4 10 . Tactical Retreats 2 | . . . . 1 1 . Traps | -11 -10 -10 -10 -9 -8 -7 ------- Run | Yrd Mat Min Exi Min Mat Fac Traps Triggered 1 | . . . . . 1 . Indirectly . | . . . . . . . Trap Hack Attempts . | . . . . . . . Triggered . | . . . . . . . Disarmed . | . . . . . . . Reprogrammed . | . . . . . . . Reused . | . . . . . . . Traps Extracted . | . . . . . . . Installed . | . . . . . . . Triggered . | . . . . . . . Machines | -11 -10 -10 -10 -9 -8 -7 ---------- Run | Yrd Mat Min Exi Min Mat Fac Machines Disabled 2 | . . . . . 2 . Max in Single Turn 1 | . . . . . 1 . Machines Repaired . | . . . . . . . Machines Dismantled . | . . . . . . . Machines Sabotaged . | . . . . . . . Overloaded Fab Kills . | . . . . . . . Hacking | -11 -10 -10 -10 -9 -8 -7 --------- Run | Yrd Mat Min Exi Min Mat Fac Machines Accessed 9 | . 4 . 1 . 4 . Terminals 5 | . 3 . . . 2 . Fabricators . | . . . . . . . Repair Stations . | . . . . . . . Recycling Units 3 | . 1 . . . 2 . Scanalyzers . | . . . . . . . Garrison Access . | . . . . . . . Total Hacks 22 | . 9 . 1 . 12 . Successful 12 | . 5 . 1 . 6 . Failed 10 | . 4 . . . 6 . Catastrophic . | . . . . . . . Database Lockouts . | . . . . . . . Manual 22 | . 9 . . . 12 1 Terminals 16 | . 8 . . . 8 . Fabricators . | . . . . . . . Repair Stations . | . . . . . . . Recycling Units 5 | . 1 . . . 4 . Scanalyzers . | . . . . . . . Garrison Access . | . . . . . . . Terminal Hacks 5 | . 2 . 1 . 2 . Record 1 | . . . 1 . . . Robot Analysis 3 | . 2 . . . 1 . Recycling Unit Index 1 | . . . . . 1 . Fabricator Hacks . | . . . . . . . Repair Station Hacks . | . . . . . . . Recycling Unit Hacks . | . . . . . . . Scanalyzer . | . . . . . . . Garrison Access Hacks . | . . . . . . . Unauthorized Hacks 7 | . 3 . . . 4 . Terminals 4 | . 2 . . . 2 . Botnet 4 | . 2 . . . 2 . Fabricators . | . . . . . . . Repair Stations . | . . . . . . . Recycling Units 3 | . 1 . . . 2 . Tunnel 3 | . 1 . . . 2 . Scanalyzers . | . . . . . . . Garrison Access . | . . . . . . . Data Cores Recovered . | . . . . . . . Used . | . . . . . . . Hacking Detections 7 | . 3 . . . 3 1 Full Trace Events . | . . . . . . . Feedback Events . | . . . . . . . Feedback Blocked . | . . . . . . . Robot Schematics Acquired . | . . . . . . . Robots Built . | . . . . . . . Authchips . | . . . . . . . Time . | . . . . . . . Total Robot Build Rating . | . . . . . . . Part Schematics Acquired . | . . . . . . . Parts Built . | . . . . . . . Authchips . | . . . . . . . Time . | . . . . . . . Total Part Build Rating . | . . . . . . . Part Studies Acquired . | . . . . . . . Parts Repaired . | . . . . . . . Time . | . . . . . . . Parts Recycled . | . . . . . . . Recycled Matter . | . . . . . . . Retrieved Matter . | . . . . . . . Retrieved Components . | . . . . . . . Parts Scanalyzed . | . . . . . . . Part Schematics Acquired . | . . . . . . . Parts Damaged . | . . . . . . . Bothacking | -11 -10 -10 -10 -9 -8 -7 ------------ Run | Yrd Mat Min Exi Min Mat Fac Used RIF Installer . | . . . . . . . Robots Hacked . | . . . . . . . Non-combat . | . . . . . . . Combat . | . . . . . . . Robot Hacks Applied . | . . . . . . . Relay Couplers Released . | . . . . . . . Fabnet Peak Effective % . | . . . . . . . Robots Rewired . | . . . . . . . Allies Hacked . | . . . . . . . Hacks Repelled . | . . . . . . . Allies | -11 -10 -10 -10 -9 -8 -7 -------- Run | Yrd Mat Min Exi Min Mat Fac Total Allies 3 | . . 3 . . . . Largest Group 3 | . . 3 3 3 1 . Highest-Rated Group 40 | . . 40 40 40 16 . Highest-Rated Ally 16 | . . 16 16 16 16 . Total Orders . | . . . . . . . Ally Attacks 27 | . . . . 4 23 . Total Damage 307 | . . . . 40 267 . Kills 5 | . . . . 3 2 . Allies Corrupted . | . . . . . . . Allies Melted . | . . . . . . . Intel | -11 -10 -10 -10 -9 -8 -7 ------- Run | Yrd Mat Min Exi Min Mat Fac Active Infowar (turns) . | . . . . . . . Robot Analysis Total 3 | . 2 . . . 1 . Derelict Logs Recovered 2 | . . . . 2 . . Drone Launches . | . . . . . . . Drone Recoveries . | . . . . . . . Exploration | -11 -10 -10 -10 -9 -8 -7 ------------- Run | Yrd Mat Min Exi Min Mat Fac Turns Passed 4013 | 66 868 907 317 430 1335 90 Spaces Moved 1636 | 36 302 351 133 171 609 34 Core 6 | 6 . . . . . . Treads 1630 | 30 302 351 133 171 609 34 Legs . | . . . . . . . Wheels . | . . . . . . . Hover . | . . . . . . . Flight . | . . . . . . . Fastest Speed 50 | 50 160 240 240 240 156 241 Average Speed 204 | 155 218 240 240 240 159 241 Slowest Speed 241 | 200 240 240 240 240 161 241 Overloaded Moves . | . . . . . . . Propulsion Burnouts . | . . . . . . . Robots Hopped . | . . . . . . . Potential Cave-ins . | . . . . . . . Cave-ins Triggered . | . . . . . . . Exploration Rate (%) 42 | 3 60 72 49 49 65 1 Regions Visited 6 Branch Regions 3 Pre-discovered Areas 6 | . 1 . 1 2 2 . Known Exits Taken . | . . . . . . . Unknown Exits Taken 6 | 1 1 1 1 1 1 . Scrap Searched 2 | . . 1 . 1 . . Spaces Dug . | . . . . . . . Terrain Destroyed 1 | . . . . . 1 . Melee . | . . . . . . . Projectile 1 | . . . . . 1 . AOE . | . . . . . . . Terrain Rammed . | . . . . . . . Walls Destroyed . | . . . . . . . Machines Disabled . | . . . . . . . Actions | -11 -10 -10 -10 -9 -8 -7 --------- Run | Yrd Mat Min Exi Min Mat Fac Total 1998 | 44 402 387 132 179 814 40 Wait 50 | . 15 20 . . 15 . Move 1630 | 35 301 350 132 170 608 34 Hop . | . . . . . . . Pick Up 43 | 2 17 . . 1 22 1 Fast Attach 9 | 6 2 . . . 1 . Attach 17 | . 3 . . 1 11 2 Detach 2 | . . . . . 2 . Swap 30 | . 3 . . 1 23 3 Drop 27 | 1 1 . . . 25 . Fire 188 | . 60 15 . 6 107 . Melee . | . . . . . . . Ram . | . . . . . . . Kick . | . . . . . . . Crush . | . . . . . . . Escape Stasis . | . . . . . . . Rewire 2 | . . 2 . . . . Trap . | . . . . . . . Miscellaneous . | . . . . . . . Route ------- -11/Scrapyard -10/Materials (discovered 4 exits: [*Mat x3] / [*Min]) -10/Mines (discovered 2 exits: [*Mat] / *Exi) -10/Exiles (discovered 2 exits: [*Min x2]) -9/Mines -8/Materials (discovered 2 exits: *Fac x2) -7/Factory History --------- Turn | Location | Event 2 | -11/Scrapyard | Met Revision 17 16 | -11/Scrapyard | Discovered new exit (range 14) 67 | -11/Scrapyard | Entered Materials 256 | -10/Materials | Discovered new exit (range 3) 317 | -10/Materials | Build established: Mutant 410 | -10/Materials | Discovered new exit (range 15) 629 | -10/Materials | Core integrity fell below 50% 649 | -10/Materials | Discovered new exit (range 10) 660 | -10/Materials | Destroyed 8 combat bots 911 | -10/Materials | Discovered new exit (range 11) 935 | -10/Materials | Entered Mines 967 | -10/Mines | Deemed a non-threat by the Exiles lab entrance 1338 | -10/Mines | Discovered new exit (range 13) 1351 | -10/Mines | Assembled infested the area 1564 | -10/Mines | Assisted by bots powering up and referring to "LRC-V3" 1833 | -10/Mines | Discovered new exit (range 5) 1842 | -10/Mines | Entered Exiles 1842 | -10/Exiles | Accompanied by 3 allies 1874 | -10/Exiles | Discovered new exit (range 15) 1902 | -10/Exiles | Met 8R-AWN 1943 | -10/Exiles | Met EX-HEX 2037 | -10/Exiles | Met EX-DEC 2051 | -10/Exiles | Learned location of Zion (-6) 2128 | -10/Exiles | Discovered new exit (range 14) 2159 | -10/Exiles | Entered Mines 2159 | -9/Mines | Accompanied by 3 allies 2330 | -9/Mines | Core integrity fell below 20% 2553 | -9/Mines | Discovered new exit (range 15) 2589 | -9/Mines | Entered Materials 2589 | -8/Materials | Accompanied by 1 ally 2589 | -8/Materials | Evolved 4 slots: Propulsion x2, Utility x1, Weapon x1 2928 | -8/Materials | Discovered new exit (range 11) 3015 | -8/Materials | Build established: Scavenger-Tank 3280 | -8/Materials | Garrison activated, responded to threat 3568 | -8/Materials | Build established: Tank 3838 | -8/Materials | Discovered new exit (range 15) 3924 | -8/Materials | Entered Factory 3924 | -7/Factory | Evolved 2 slots: Utility x2 3950 | -7/Factory | Build established: Scavenger-Tank 4014 | -7/Factory | Self-destructed Last Messages --------------- 03879_ Acquired 47 matter. 03880_ U-05 Engineer builds a Door. 03882_ Dropped Heat Sink. 03894_ Dropped Imp. Heat Sink. 03894_ Dropped Heat Sink. 03898_ Acquired Hvy. Particle Cannon. 03903_ Slug penetrates G-47 Trooper. 03903_ G-47 Trooper destroyed. 03905_ Dropped Adv. Beam Cannon. 03906_ Acquired Hvy. Particle Cannon. 03909_ Acquired Missile Launcher. 03910_ Dropped Lgt. Treads. 03912_ Acquired Missile Launcher. 03921_ Acquired 35 matter. PARAMETERS=UTILITY+2 LOCATION=UNKNOWN GOAL=ESCAPE 03991_ Acquired Coolant Injector. 04014_ Connecting with Terminal... 04014_ Current location identified: Factory Map ----- +----------------------------------------------------+ | ?????????????????????????????????????????? | | ?????????????????????????????????????????? | | ?????????????????????????????????????????? | | ?????????????????????????????????????????? | | ?????????????????????????????????????????? | | ??????????????????????????????#######????? | | ??????????????????????????????# #????? | | ??????????????????????????????# #????? | | ??????????????????????????????# #????? | | ??????????????????????????????# #????? | | ??????????????????????????????# #????? | | ??????????????????????????????# #????? | | ????????"" ???????????????????# #????? | | ???????? ??????????????????# #????? | | ????????"" #######+########## #????? | | ????????"" #????? | | ???????""" #????? | | ?????? #????? | | ????????"" #????? | | ????????"" #????? | | ????????"" #####+################????? | | ???????? ?????# #????????????? | | ???????????????# ""#????????????? | | ???????????????# ""#????????????? | | ???????????????# T"#????????????? | | ???????????????# @""#????????????? | | ???????????????# ""#????????????? | | ???????????????# #????????????? | | ???????????????# """""" #????????????? | | ???????????????# """""" #????????????? | | ???????????????# """""" #????????????? | | ???????????????# """""" #????????????? | | ???????????????# #????????????? | | ???????????????#########???##????????????? | | ?????????????????????????????????????????? | | ?????????????????????????????????????????? | | ?????????????????????????????????????????? | | ?????????????????????????????????????????? | | ?????????????????????????????????????????? | | ?????????????????????????????????????????? | | ?????????????????????????????????????????? | | ?????????????????????????????????????????? | | ?????????????????????????????????????????? | | ?????????????????????????????????????????? | | ?????????????????????????????????????????? | | ?????????????????????????????????????????? | | ?????????????????????????????????????????? | | ?????????????????????????????????????????? | | ?????????????????????????????????????????? | | ?????????????????????????????????????????? | +----------------------------------------------------+ Best States ------------- Heat Dissipation 62 Energy Generation 16 Energy Capacity 290 Matter Stores 300 Matter Capacity 300 Sight Range 16 Terrain Scan Density 10 Armor Coverage 225 Evasion (%) 40 Recoil Reduction 4 Item Schematics ----------------- None Robot Schematics ------------------ None Fabricated ------------ Nothing Repaired ---------- Nothing Studied --------- None Alien Tech Used ----------------- None Achievements -------------- None Challenges ------------ None Game ------ Seed MetafieldBiomechanicalSuite Manual? 0 Play Time 00:19:38 Cumulative 295.6 hours Start 2026.08.22 @ 14:31:21 End 2026.08.22 @ 14:50:36 Sessions 1 Manual Loads 0 Difficulty Rogue Special Mode None Game No. 278 Rogue 224 Adventurer 54 Explorer 0 Win Type - Total 12 Types 8/0/1/1/0/0/0/1/0/1 Lore% 77 Gallery% 66 Achievement% 61 Wizard Run 0 Options --------- Layout 1 ASCII 0 Keyboard 0 Movement Mouse Keybinds 1 Fullscreen 2 Font 32/Tamsyn Map View 50x35 Zoom Use 0% Tactical HUD 1 Map Filters NONE Filters NONE Steam 1 RUN: 34ab462a-5d41-4072-8307-bfabd4ffbcd3